lending/lending_fUSD_20250315
["ID","MTS","AMOUNT","RATE_DAILY","PERIOD"]
[356189169,1742053868302,-500.0,0.00044109,120]
[356189170,1742053868312,-500.0,0.00044109,120]
[356189171,1742053868323,-500.0,0.00044109,120]
[356189172,1742053868332,-500.0,0.00044109,120]
[356189173,1742053868342,-518.64195817,0.00044109,120]
[356189174,1742053868352,-500.0,0.00044109,120]
[356189175,1742053868363,-1720.16,0.00044109,120]
[356189176,1742053868373,-1938.15,0.00044109,120]
[356189177,1742053868383,-500.0,0.00044109,120]
[356189178,1742053868392,-500.0,0.00044109,120]
[356189179,1742053868403,-1928.15,0.00044109,120]
[356189180,1742053868414,-993.96,0.00044109,120]
[356189181,1742053868425,-500.0,0.00044109,120]
[356189182,1742053868434,-992.83,0.00044109,120]
[356189183,1742053868445,-364.19472464,0.00044109,120]
[356189184,1742053868455,-555.32,0.00044109,120]
[356189185,1742053868466,-500.0,0.00044109,120]
[356189186,1742053868475,-500.0,0.00044109,120]
[356189187,1742053868485,-500.0,0.00044109,120]
[356189188,1742053868496,-500.0,0.00044109,120]
[356189189,1742053868505,-517.54426326,0.00044109,120]
[356189190,1742053868515,-715.78,0.00044109,120]
[356189191,1742053868526,-637.28,0.00044109,120]
[356189192,1742053868537,-500.0,0.00044109,120]
[356189193,1742053868547,-2182.86,0.00044109,120]
[356189194,1742053868557,-181.17609163,0.00044109,120]
[356189195,1742053868568,-592.78667352,0.00044109,120]
[356189196,1742053868579,-275.08538714,0.00044109,120]
[356189197,1742053868588,-532.44,0.00044109,120]
[356189198,1742053868600,-276.87555916,0.00044109,120]
[356189199,1742053868612,-500.0,0.00044109,120]
[356189200,1742053868622,-506.21094751,0.00044109,120]
[356189201,1742053868634,-508.95745315,0.00044109,120]
[356189202,1742053868645,-500.0,0.00044109,120]
[356189203,1742053868656,-500.0,0.00044109,120]
[356189204,1742053868666,-504.34991595,0.00044109,120]
[356189205,1742053868676,-500.0,0.00044109,120]
[356189206,1742053868687,-500.0,0.00044109,120]
[356189207,1742053868697,-912.39,0.00044109,120]
[356189208,1742053868707,-500.0,0.00044109,120]
[356189209,1742053868717,-500.0,0.00044109,120]
[356189210,1742053868727,-569.88,0.00044109,120]
[356189211,1742053868737,-859.69,0.00044109,120]
[356189212,1742053868747,-500.0,0.00044109,120]
[356189213,1742053868757,-500.0,0.00044109,120]
[356189214,1742053868767,-500.0,0.00044109,120]
[356189215,1742053868776,-556.06,0.00044109,120]
[356189216,1742053868786,-500.0,0.00044109,120]
[356189217,1742053868796,-645.88219025,0.00044109,120]
[356189218,1742053868806,-500.0,0.00044109,120]
[356189219,1742053868816,-948.57,0.00044109,120]
[356189220,1742053868826,-500.0,0.00044109,120]
[356189221,1742053868836,-500.0,0.00044109,2]
[356189222,1742053868846,-1103.3,0.00044109,120]
[356189223,1742053868856,-500.0,0.00044109,120]
[356189224,1742053868866,-500.0,0.00044109,120]
[356189225,1742053868875,-500.0,0.00044109,120]
[356189226,1742053868885,-656.59,0.00044109,120]
[356189227,1742053868896,-500.0,0.00044109,120]
[356189228,1742053868906,-506.35410274,0.00044109,120]
[356189229,1742053868916,-219.09510627,0.00044109,30]
[356189230,1742053868926,-500.0,0.00044109,120]
[356189231,1742053868935,-500.0,0.00044109,120]
[356189232,1742053868945,-500.0,0.00044109,120]
[356189233,1742053868955,-500.0,0.00044109,120]
[356189234,1742053868965,-500.0,0.00044109,120]
[356189235,1742053868975,-500.0,0.00044109,120]
[356189236,1742053868986,-500.0,0.00044109,120]
[356189237,1742053868996,-500.0,0.00044109,120]
[356189238,1742053869007,-500.0,0.00044109,120]
[356189239,1742053869016,-500.0,0.00044109,120]
[356189240,1742053869027,-500.0,0.00044109,120]
[356189241,1742053869036,-504.58638268,0.00044109,120]
[356189242,1742053869047,-500.0,0.00044109,120]
[356189243,1742053869057,-508.09146322,0.00044109,120]
[356189244,1742053869067,-500.0,0.00044109,120]
[356189245,1742053869076,-500.0,0.00044109,120]
[356189246,1742053869086,-500.0,0.00044109,30]
[356189247,1742053869096,-510.14429799,0.00044109,120]
[356189248,1742053869105,-500.0,0.00044109,120]
[356189249,1742053869115,-532.03,0.00044109,120]
[356189250,1742053869125,-500.0,0.00044109,120]
[356189251,1742053869136,-500.0,0.00044109,120]
[356189252,1742053869145,-1098.21,0.00044109,120]
[356189253,1742053869155,-500.0,0.00044109,120]
[356189254,1742053869166,-500.0,0.00044109,120]
[356189255,1742053869176,-500.0,0.00044109,120]
[356189256,1742053869186,-500.0,0.00044109,120]
[356189257,1742053869196,-515.66,0.00044109,120]
[356189258,1742053869206,-1036.04,0.00044109,120]
[356189259,1742053869215,-500.0,0.00044109,120]
[356189260,1742053869225,-726.2,0.00044109,120]
[356189261,1742053869235,-373.1128681,0.00044109,120]
[356189262,1742053869245,-572.55,0.00044109,120]
[356189263,1742053869255,-500.0,0.00044109,120]
[356189264,1742053869265,-500.0,0.00044109,120]
[356189265,1742053869275,-500.0,0.00044109,120]
[356189266,1742053869534,-500.0,0.00044109,120]
[356189267,1742053869547,-607.42153178,0.00044109,120]
[356189268,1742053869557,-500.0,0.00044109,120]
[356189269,1742053869567,-500.0,0.00044109,120]
[356189270,1742053869576,-712.94,0.00044109,120]
[356189271,1742053869586,-985.7,0.00044109,120]
[356189272,1742053869596,-500.0,0.00044109,120]
[356189273,1742053869610,-803.99,0.00044109,120]
[356189274,1742053869620,-603.89,0.00044109,120]
[356189275,1742053869630,-642.88,0.00044109,120]
[356189276,1742053869639,-500.0,0.00044109,120]
[356189277,1742053869650,-500.0,0.00044109,120]
[356189278,1742053869660,-500.0,0.00044109,120]
[356189279,1742053869669,-1000.0,0.00044109,120]
[356189280,1742053869680,-500.0,0.00044109,120]
[356189281,1742053869689,-500.0,0.00044109,120]
[356189282,1742053869699,-500.0,0.00044109,120]
[356189283,1742053869709,-500.0,0.00044109,120]
[356189284,1742053869719,-500.0,0.00044109,120]
[356189285,1742053869728,-1082.44,0.00044109,120]
[356189286,1742053869738,-500.0,0.00044109,120]
[356189287,1742053869748,-500.0,0.00044109,120]
[356189288,1742053869758,-500.0,0.00044109,120]
[356189289,1742053869768,-527.33121824,0.00044109,120]
[356189290,1742053869778,-500.0,0.00044109,120]
[356189291,1742053869788,-500.0,0.00044109,120]
[356189292,1742053869797,-852.49,0.00044109,120]
[356189293,1742053869807,-500.0,0.00044109,120]
[356189294,1742053869817,-500.0,0.00044109,30]
[356189295,1742053869826,-500.0,0.00044109,120]
[356189296,1742053869836,-500.0,0.00044109,120]
[356189297,1742053869845,-500.0,0.00044109,120]
[356189298,1742053869855,-558.6850171,0.00044109,120]
[356189299,1742053869864,-545.2574289,0.00044109,120]
[356189300,1742053869874,-500.0,0.00044109,120]
[356189301,1742053869883,-649.27479082,0.00044109,120]
[356189302,1742053869893,-500.0,0.00044109,120]
[356189303,1742053869903,-1445.08,0.00044109,120]
[356189304,1742053869912,-838.66,0.00044109,120]
[356189305,1742053869923,-500.0,0.00044109,120]
[356189306,1742053869932,-677.04,0.00044109,120]
[356189307,1742053869942,-500.0,0.00044109,120]
[356189308,1742053869952,-500.0,0.00044109,120]
[356189309,1742053869962,-500.0,0.00044109,120]
[356189310,1742053869972,-500.0,0.00044109,120]
[356189311,1742053869982,-1041.27,0.00044109,120]
[356189312,1742053869991,-500.0,0.00044109,120]
[356189313,1742053870002,-500.0,0.00044109,120]
[356189314,1742053870012,-588.87,0.00044109,120]
[356189315,1742053870022,-511.7264634,0.00044109,120]
[356189316,1742053870032,-500.0,0.00044109,120]
[356189317,1742053870042,-500.0,0.00044109,120]
[356189318,1742053870052,-500.0,0.00044109,120]
[356189319,1742053870062,-500.0,0.00044109,120]
[356189320,1742053870071,-500.0,0.00044109,120]
[356189321,1742053870088,-500.0,0.00044109,120]
[356189322,1742053870098,-1178.25,0.00044109,120]
[356189323,1742053870111,-500.0,0.00044109,120]
[356189324,1742053870121,-500.0,0.00044109,120]
[356189325,1742053870131,-500.0,0.00044109,120]
[356189326,1742053870140,-565.24,0.00044109,120]
[356189327,1742053870150,-685.5,0.00044109,120]
[356189328,1742053870160,-500.0,0.00044109,120]
[356189329,1742053870170,-500.0,0.00044109,120]
[356189330,1742053870180,-1358.72,0.00044109,120]
[356189331,1742053870190,-500.0,0.00044109,120]
[356189332,1742053870200,-500.0,0.00044109,120]
[356189333,1742053870209,-619.82,0.00044109,120]
[356189334,1742053870219,-500.0,0.00044109,120]
[356189335,1742053870228,-500.0,0.00044109,120]
[356189336,1742053870241,-500.0,0.00044109,120]
[356189337,1742053870250,-689.79,0.00044109,120]
[356189338,1742053870259,-500.0,0.00044109,120]
[356189339,1742053870268,-1072.25,0.00044109,120]
[356189340,1742053870278,-500.0,0.00044109,120]
[356189341,1742053870287,-500.0,0.00044109,120]
[356189342,1742053870297,-500.0,0.00044109,120]
[356189343,1742053870306,-500.0,0.00044109,120]
[356189344,1742053870316,-500.0,0.00044109,120]
[356189345,1742053870327,-500.0,0.00044109,120]
[356189346,1742053870337,-500.0,0.00044109,120]
[356189347,1742053870346,-500.0,0.00044109,120]
[356189348,1742053870356,-500.0,0.00044109,120]
[356189349,1742053870366,-500.0,0.00044109,120]
[356189350,1742053870376,-548.23,0.00044109,120]
[356189351,1742053870385,-500.0,0.00044109,120]
[356189352,1742053870395,-500.0,0.00044109,120]
[356189353,1742053870405,-500.0,0.00044109,120]
[356189354,1742053870414,-500.0,0.00044109,120]
[356189355,1742053870423,-711.2,0.00044109,120]
[356189356,1742053870434,-500.0,0.00044109,120]
[356189357,1742053870443,-1400.82,0.00044109,120]
[356189358,1742053870452,-500.0,0.00044109,120]
[356189359,1742053870462,-529.2414249,0.00044109,120]
[356189360,1742053870472,-500.0,0.00044109,120]
[356189361,1742053870481,-500.0,0.00044109,120]
[356189362,1742053870491,-500.0,0.00044109,120]
[356189363,1742053870501,-500.0,0.00044109,120]
[356189364,1742053870510,-500.0,0.00044109,120]
[356189365,1742053870520,-500.0,0.00044109,120]
[356189366,1742053870530,-500.0,0.00044109,120]
[356189367,1742053870540,-500.0,0.00044109,120]
[356189368,1742053870550,-500.0,0.00044109,120]
[356189369,1742053870560,-814.96,0.00044109,120]
[356189370,1742053870570,-362.38272381,0.00044109,120]
[356189371,1742053870580,-601.09,0.00044109,120]
[356189372,1742053870590,-1944.92,0.00044109,120]
[356189373,1742053870602,-505.42292067,0.00044109,120]
[356189374,1742053870612,-500.0,0.00044109,120]
[356189375,1742053870622,-500.0,0.00044109,120]
[356189376,1742053870631,-500.0,0.00044109,120]
[356189377,1742053870641,-500.0,0.00044109,120]
[356189378,1742053870651,-1078.55,0.00044109,120]
[356189379,1742053870660,-769.89,0.00044109,120]
[356189380,1742053870669,-500.0,0.00044109,120]
[356189381,1742053870679,-627.07,0.00044109,120]
[356189382,1742053870689,-500.0,0.00044109,120]
[356189383,1742053870699,-403.16512849,0.00044109,120]
[356189384,1742053870708,-500.0,0.00044109,120]
[356189385,1742053870718,-500.0,0.00044109,120]
[356189386,1742053870727,-500.0,0.00044109,120]
[356189387,1742053870737,-1362.1,0.00044109,120]
[356189388,1742053870746,-500.0,0.00044109,120]
[356189389,1742053870755,-500.0,0.00044109,120]
[356189390,1742053870765,-500.0,0.00044109,120]
[356189391,1742053870775,-500.0,0.00044109,120]
[356189392,1742053870784,-500.0,0.00044109,120]
[356189393,1742053870794,-500.0,0.00044109,120]
[356189394,1742053870803,-886.33,0.00044109,120]
[356189395,1742053870813,-500.0,0.00044109,120]
[356189396,1742053870822,-500.0,0.00044109,120]
[356189397,1742053870832,-500.0,0.00044109,120]
[356189398,1742053870842,-535.68,0.00044109,120]
[356189399,1742053870851,-1042.42,0.00044109,120]
[356189400,1742053870861,-456.50570559,0.00044109,120]
[356189401,1742053870871,-500.0,0.00044109,120]
[356189402,1742053870880,-4177.15,0.00044109,120]
[356189403,1742053870889,-500.0,0.00044109,120]
[356189404,1742053870900,-500.0,0.00044109,120]
[356189405,1742053870909,-500.0,0.00044109,120]
[356189406,1742053870919,-500.0,0.00044109,120]
[356189407,1742053870929,-849.57,0.00044109,120]
[356189408,1742053870939,-500.0,0.00044109,120]
[356189409,1742053870948,-568.88,0.00044109,120]
[356189410,1742053870958,-500.0,0.00044109,120]
[356189411,1742053870968,-500.0,0.00044109,120]
[356189412,1742053870979,-500.0,0.00044109,120]
[356189413,1742053870988,-500.0,0.00044109,120]
[356189414,1742053870998,-428.97,0.00044109,120]
[356189415,1742053871008,-551.17,0.00044109,120]
[356189416,1742053871019,-721.79,0.00044109,120]
[356189417,1742053871028,-500.0,0.00044109,120]
[356189418,1742053871038,-500.0,0.00044109,120]
[356189419,1742053871048,-530.36,0.00044109,120]
[356189420,1742053871058,-500.0,0.00044109,120]
[356189421,1742053871068,-500.0,0.00044109,120]
[356189422,1742053871079,-735.67,0.00044109,120]
[356189423,1742053871089,-1080.83,0.00044109,120]
[356189424,1742053871099,-500.0,0.00044109,120]
[356189425,1742053871110,-500.0,0.00044109,120]
[356189426,1742053871120,-500.0,0.00044109,120]
[356189427,1742053871130,-541.66,0.00044109,120]
[356189428,1742053871140,-500.0,0.00044109,120]
[356189429,1742053871150,-539.2,0.00044109,120]
[356189430,1742053871160,-500.0,0.00044109,120]
[356189431,1742053871169,-500.0,0.00044109,120]
[356189432,1742053871179,-500.0,0.00044109,120]
[356189433,1742053871188,-317.38616785,0.00044109,120]
[356189434,1742053871198,-500.0,0.00044109,120]
[356189435,1742053871207,-1417.21,0.00044109,120]
[356189436,1742053871217,-1311.78,0.00044109,120]
[356189437,1742053871227,-500.0,0.00044109,120]
[356189438,1742053871236,-3875.75,0.00044109,120]
[356189439,1742053871246,-500.0,0.00044109,120]
[356189440,1742053871255,-500.0,0.00044109,120]
[356189441,1742053871265,-1108.73,0.00044109,120]
[356189442,1742053871274,-500.0,0.00044109,120]
[356189443,1742053871283,-500.0,0.00044109,120]
[356189444,1742053871293,-973.66,0.00044109,120]
[356189445,1742053871302,-500.0,0.00044109,120]
[356189446,1742053871311,-500.0,0.00044109,120]
[356189447,1742053871321,-1185.5,0.00044109,120]
[356189448,1742053871330,-500.0,0.00044109,120]
[356189449,1742053871339,-500.0,0.00044109,120]
[356189450,1742053871349,-1185.63,0.00044109,120]
[356189451,1742053871359,-775.97,0.00044109,120]
[356189452,1742053871368,-504.56521474,0.00044109,120]
[356189453,1742053871378,-500.0,0.00044109,120]
[356189454,1742053871388,-500.0,0.00044109,120]
[356189455,1742053871398,-861.38,0.00044109,120]
[356189456,1742053871407,-502.70555269,0.00044109,120]
[356189457,1742053871416,-500.0,0.00044109,120]
[356189458,1742053871425,-500.0,0.00044109,120]
[356189459,1742053871435,-1156.91,0.00044109,120]
[356189460,1742053871444,-500.0,0.00044109,120]
[356189461,1742053871453,-500.0,0.00044109,120]
[356189462,1742053871463,-500.0,0.00044109,120]
[356189463,1742053871472,-500.0,0.00044109,120]
[356189464,1742053871481,-500.0,0.00044109,120]
[356189465,1742053871491,-500.0,0.00044109,120]
[356189466,1742053871501,-501.30138196,0.00044109,120]
[356189467,1742053871510,-561.56,0.00044109,120]
[356189468,1742053871519,-887.11,0.00044109,120]
[356189469,1742053871529,-500.0,0.00044109,120]
[356189470,1742053871538,-500.0,0.00044109,120]
[356189471,1742053871547,-1007.49,0.00044109,120]
[356189472,1742053871556,-517.87405127,0.00044109,120]
[356189473,1742053871566,-500.0,0.00044109,120]
[356189474,1742053871575,-500.0,0.00044109,120]
[356189475,1742053871584,-500.0,0.00044109,120]
[356189476,1742053871594,-500.0,0.00044109,120]
[356189477,1742053871606,-503.5826317,0.00044109,120]
[356189478,1742053871616,-500.0,0.00044109,120]
[356189479,1742053871627,-500.0,0.00044109,120]
[356189480,1742053871636,-620.75,0.00044109,120]
[356189481,1742053871647,-500.0,0.00044109,120]
[356189482,1742053871656,-343.00706934,0.00044109,120]
[356189483,1742053871665,-626.63,0.00044109,120]
[356189484,1742053871674,-521.13164027,0.00044109,120]
[356189485,1742053871684,-589.11,0.00044109,120]
[356189486,1742053871694,-500.0,0.00044109,120]
[356189487,1742053871703,-500.0,0.00044109,120]
[356189488,1742053871713,-500.0,0.00044109,120]
[356189489,1742053871722,-500.0,0.00044109,120]
[356189490,1742053871731,-500.0,0.00044109,120]
[356189491,1742053871740,-608.9,0.00044109,120]
[356189492,1742053871750,-508.68169038,0.00044109,120]
[356189493,1742053871759,-500.0,0.00044109,120]
[356189494,1742053871769,-1075.99,0.00044109,120]
[356189495,1742053871779,-508.8610246,0.00044109,120]
[356189496,1742053871788,-500.0,0.00044109,120]
[356189497,1742053871797,-651.54,0.00044109,120]
[356189498,1742053871806,-502.62216387,0.00044109,120]
[356189499,1742053871816,-500.0,0.00044109,120]
[356189500,1742053871825,-500.0,0.00044109,120]
[356189501,1742053871893,-500.0,0.00044109,120]
[356189502,1742053871902,-228.7487916,0.00044109,120]
[356189503,1742053871912,-500.0,0.00044109,120]
[356189504,1742053871921,-500.0,0.00044109,120]
[356189505,1742053871931,-500.0,0.00044109,120]
[356189506,1742053871940,-500.0,0.00044109,120]
[356189507,1742053871950,-587.95,0.00044109,120]
[356189508,1742053871959,-500.0,0.00044109,120]
[356189509,1742053871968,-520.97,0.00044109,120]
[356189510,1742053871977,-500.0,0.00044109,120]
[356189511,1742053871987,-689.44,0.00044109,120]
[356189512,1742053871997,-656.92,0.00044109,120]
[356189513,1742053872006,-500.0,0.00044109,120]
[356189514,1742053872016,-500.0,0.00044109,120]
[356189515,1742053872025,-618.89980772,0.00044109,120]
[356189516,1742053872035,-508.06698223,0.00044109,120]
[356189517,1742053872044,-500.0,0.00044109,120]
[356189518,1742053872053,-766.74,0.00044109,120]
[356189519,1742053872063,-500.0,0.00044109,120]
[356189520,1742053872072,-500.0,0.00044109,120]
[356189521,1742053872082,-500.0,0.00044109,120]
[356189522,1742053872091,-506.08,0.00044109,120]
[356189523,1742053872100,-612.67,0.00044109,120]
[356189524,1742053872109,-500.0,0.00044109,120]
[356189525,1742053872119,-500.0,0.00044109,120]
[356189526,1742053872128,-2035.5,0.00044109,120]
[356189527,1742053872137,-500.0,0.00044109,120]
[356189528,1742053872146,-500.0,0.00044109,120]
[356189529,1742053872155,-1143.35,0.00044109,120]
[356189530,1742053872165,-500.0,0.00044109,120]
[356189531,1742053872174,-500.0,0.00044109,120]
[356189532,1742053872183,-500.0,0.00044109,120]
[356189533,1742053872193,-500.0,0.00044109,120]
[356189534,1742053872202,-500.0,0.00044109,120]
[356189535,1742053872211,-500.0,0.00044109,120]
[356189536,1742053872221,-500.0,0.00044109,120]
[356189537,1742053872230,-797.83,0.00044109,120]
[356189538,1742053872239,-500.0,0.00044109,120]
[356189539,1742053872249,-758.7,0.00044109,120]
[356189540,1742053872258,-500.0,0.00044109,120]
[356189541,1742053872267,-500.0,0.00044109,120]
[356189542,1742053872277,-500.0,0.00044109,120]
[356189543,1742053872286,-500.0,0.00044109,120]
[356189544,1742053872295,-529.77903128,0.00044109,120]
[356189545,1742053872304,-500.0,0.00044109,120]
[356189546,1742053872313,-500.0,0.00044109,120]
[356189547,1742053872323,-500.0,0.00044109,120]
[356189548,1742053872332,-500.0,0.00044109,120]
[356189549,1742053872341,-1150.14,0.00044109,120]
[356189550,1742053872350,-386.37774126,0.00044109,120]
[356189551,1742053872359,-500.0,0.00044109,120]
[356189552,1742053872369,-500.0,0.00044109,120]
[356189553,1742053872378,-500.0,0.00044109,120]
[356189554,1742053872387,-500.0,0.00044109,120]
[356189555,1742053872396,-813.1,0.00044109,120]
[356189556,1742053872406,-500.0,0.00044109,120]
[356189557,1742053872415,-500.0,0.00044109,120]
[356189558,1742053872424,-500.0,0.00044109,120]
[356189559,1742053872434,-500.0,0.00044109,120]
[356189560,1742053872443,-500.0,0.00044109,120]
[356189561,1742053872452,-500.0,0.00044109,120]
[356189562,1742053872462,-500.0,0.00044109,120]
[356189563,1742053872471,-500.0,0.00044109,120]
[356189564,1742053872480,-500.0,0.00044109,120]
[356189565,1742053872490,-153.16885632,0.00044109,120]
[356189566,1742053872500,-500.0,0.00044109,120]
[356189567,1742053872509,-500.0,0.00044109,120]
[356189568,1742053872519,-500.0,0.00044109,120]
[356189569,1742053872529,-500.0,0.00044109,120]
[356189570,1742053872539,-626.61,0.00044109,120]
[356189571,1742053872548,-500.0,0.00044109,120]
[356189572,1742053872558,-620.62,0.00044109,120]
[356189573,1742053872567,-500.0,0.00044109,14]
[356189574,1742053872576,-500.0,0.00044109,120]
[356189575,1742053872586,-753.36,0.00044109,120]
[356189576,1742053872595,-500.0,0.00044109,120]
[356189577,1742053872609,-2527.04,0.00044109,120]
[356189578,1742053872618,-500.0,0.00044109,120]
[356189579,1742053872627,-500.0,0.00044109,120]
[356189580,1742053872637,-500.0,0.00044109,120]
[356189581,1742053872648,-500.0,0.00044109,120]
[356189582,1742053872658,-500.0,0.00044109,120]
[356189583,1742053872667,-500.0,0.00044109,120]
[356189584,1742053872676,-749.59,0.00044109,120]
[356189585,1742053872687,-500.0,0.00044109,120]
[356189586,1742053872698,-500.0,0.00044109,120]
[356189587,1742053872707,-500.0,0.00044109,120]
[356189588,1742053872716,-500.0,0.00044109,120]
[356189589,1742053872727,-500.0,0.00044109,120]
[356189590,1742053872737,-500.0,0.00044109,120]
[356189591,1742053872748,-500.0,0.00044109,120]
[356189592,1742053872757,-500.0,0.00044109,120]
[356189593,1742053872767,-500.0,0.00044109,120]
[356189594,1742053872777,-500.0,0.00044109,120]
[356189595,1742053872786,-500.0,0.00044109,120]
[356189596,1742053872796,-500.0,0.00044109,120]
[356189597,1742053872806,-531.99,0.00044109,120]
[356189598,1742053872815,-1446.97,0.00044109,120]
[356189599,1742053872824,-500.0,0.00044109,120]
[356189600,1742053872833,-500.0,0.00044109,120]
[356189601,1742053872842,-500.0,0.00044109,120]
[356189602,1742053872853,-500.0,0.00044109,120]
[356189603,1742053872863,-500.0,0.00044109,120]
[356189604,1742053872872,-500.0,0.00044109,120]
[356189605,1742053872882,-2052.71,0.00044109,120]
[356189606,1742053872891,-996.96,0.00044109,120]
[356189607,1742053872901,-523.18,0.00044109,120]
[356189608,1742053872910,-500.0,0.00044109,120]
[356189609,1742053872920,-500.0,0.00044109,120]
[356189610,1742053872929,-500.0,0.00044109,120]
[356189611,1742053872939,-500.0,0.00044109,120]
[356189612,1742053872948,-641.35,0.00044109,120]
[356189613,1742053872958,-500.0,0.00044109,120]
[356189614,1742053872967,-549.46876285,0.00044109,120]
[356189615,1742053872976,-500.0,0.00044109,120]
[356189616,1742053872986,-500.0,0.00044109,120]
[356189617,1742053872995,-1032.89,0.00044109,120]
[356189618,1742053873005,-500.0,0.00044109,120]
[356189619,1742053873015,-500.0,0.00044109,120]
[356189620,1742053873024,-753.77,0.00044109,120]
[356189621,1742053873034,-500.0,0.00044109,120]
[356189622,1742053873043,-500.0,0.00044109,120]
[356189623,1742053873052,-500.0,0.00044109,120]
[356189624,1742053873063,-500.0,0.00044109,120]
[356189625,1742053873072,-500.0,0.00044109,120]
[356189626,1742053873082,-500.0,0.00044109,120]
[356189627,1742053873091,-500.0,0.00044109,120]
[356189628,1742053873100,-648.9,0.00044109,120]
[356189629,1742053873109,-500.0,0.00044109,120]
[356189630,1742053873119,-500.0,0.00044109,120]
[356189631,1742053873128,-500.0,0.00044109,120]
[356189632,1742053873137,-500.0,0.00044109,120]
[356189633,1742053873147,-1273.12,0.00044109,120]
[356189634,1742053873156,-610.46,0.00044109,120]
[356189635,1742053873166,-500.0,0.00044109,120]
[356189636,1742053873175,-500.0,0.00044109,120]
[356189637,1742053873184,-402.96124535,0.00044109,120]
[356189638,1742053873193,-650.39,0.00044109,120]
[356189639,1742053873202,-500.0,0.00044109,120]
[356189640,1742053873211,-1171.76,0.00044109,120]
[356189641,1742053873221,-500.0,0.00044109,120]
[356189642,1742053873230,-500.0,0.00044109,120]
[356189643,1742053873240,-500.0,0.00044109,120]
[356189644,1742053873249,-530.76,0.00044109,120]
[356189645,1742053873259,-500.0,0.00044109,120]
[356189646,1742053873269,-500.0,0.00044109,120]
[356189647,1742053873278,-500.0,0.00044109,120]
[356189648,1742053873287,-500.0,0.00044109,120]
[356189649,1742053873297,-500.0,0.00044109,120]
[356189650,1742053873306,-500.0,0.00044109,120]
[356189651,1742053873315,-500.0,0.00044109,120]
[356189652,1742053873324,-1479.89,0.00044109,120]
[356189653,1742053873334,-500.0,0.00044109,120]
[356189654,1742053873343,-1282.34,0.00044109,120]
[356189655,1742053873352,-1050.25,0.00044109,120]
[356189656,1742053873362,-500.0,0.00044109,120]
[356189657,1742053873371,-500.0,0.00044109,120]
[356189658,1742053873380,-500.0,0.00044109,120]
[356189659,1742053873389,-990.99,0.00044109,120]
[356189660,1742053873399,-500.0,0.00044109,120]
[356189661,1742053873408,-500.0,0.00044109,120]
[356189662,1742053873417,-500.0,0.00044109,120]
[356189663,1742053873426,-3264.2,0.00044109,2]
[356189664,1742053873435,-500.0,0.00044109,120]
[356189665,1742053873445,-773.74,0.00044109,120]
[356189666,1742053873454,-500.0,0.00044109,120]
[356189667,1742053873463,-2327.15,0.00044109,120]
[356189668,1742053873473,-500.0,0.00044109,120]